{"text_format":"3","workbook":"xlsx","n_sheets":4,"sheets":["Protok novca","Mjesečni prihod","Mjesečni troškovi","PODACI NA GRAFIKONU"],"not_rendered":{"charts":1,"defined_names":10},"read":"whole","date_system":"1900"}

{"sheet":"Protok novca","index":0,"n_rows":9,"n_cols":5,"rows_kept":9}
[null,"Naziv"]
[null,"Obiteljski proračun"]
[null,{"$f":"TEXT(TODAY(),\"mmmm\")","v":"siječanj"}]
[null,{"$f":"YEAR(TODAY())","v":2017}]
[null,"Napomena: tablica Protok novca automatski se izračunava na temelju unosa s radnih listova Mjesečni prihod i Mjesečni troškovi"]
[null,"Protok novca","Procijenjeno","Stvarno","Odstupanje"]
[null,"Ukupni prihod",{"$f":"Prihod[[#Totals],[Procijenjeno]]","v":{"v":5700,"d":"5,700"}},{"$f":"Prihod[[#Totals],[Stvarno]]","v":{"v":5500,"d":"5,500"}},{"$f":"Prihod[[#Totals],[Odstupanje]]","v":-200}]
[null,"Ukupni troškovi",{"$f":"Troškovi[[#Totals],[Procijenjeno]]","v":{"v":3603,"d":"3,603"}},{"$f":"Troškovi[[#Totals],[Stvarno]]","v":{"v":3655,"d":"3,655"}},{"$f":"Troškovi[[#Totals],[Odstupanje]]","v":-52}]
[null,"Ukupno novca",{"$f":"C7-C8","v":{"v":2097,"d":"2,097"}},{"$f":"D7-D8","v":{"v":1845,"d":"1,845"}},{"$f":"SUBTOTAL(109,ProtokNovca[Odstupanje])","v":-252}]

{"sheet":"Mjesečni prihod","index":1,"n_rows":9,"n_cols":5,"rows_kept":9}
[null,{"$f":"Naziv","v":"Naziv"}]
[null,{"$f":"NazivProračuna","v":"Obiteljski proračun"}]
[null,{"$f":"Mjesec","v":"siječanj"}]
[null,{"$f":"Godina","v":2017}]
[null,"Mjesečni prihod","Procijenjeno","Stvarno","Odstupanje"]
[null,"Prihod 1",{"v":4000,"d":"4,000"},{"v":4000,"d":"4,000"},{"$f":"Prihod[[#This Row],[Stvarno]]-Prihod[[#This Row],[Procijenjeno]]","v":0}]
[null,"Prihod 2",{"v":1400,"d":"1,400"},{"v":1500,"d":"1,500"},{"$f":"Prihod[[#This Row],[Stvarno]]-Prihod[[#This Row],[Procijenjeno]]","v":100}]
[null,"Drugi prihod",300,0,{"$f":"Prihod[[#This Row],[Stvarno]]-Prihod[[#This Row],[Procijenjeno]]","v":-300}]
[null,"Ukupni prihod",{"$f":"SUBTOTAL(109,Prihod[Procijenjeno])","v":{"v":5700,"d":"5,700"}},{"$f":"SUBTOTAL(109,Prihod[Stvarno])","v":{"v":5500,"d":"5,500"}},{"$f":"SUBTOTAL(109,Prihod[Odstupanje])","v":-200}]

{"sheet":"Mjesečni troškovi","index":2,"n_rows":26,"n_cols":5,"rows_kept":26}
[null,{"$f":"Naziv","v":"Naziv"}]
[null,{"$f":"NazivProračuna","v":"Obiteljski proračun"}]
[null,{"$f":"Mjesec","v":"siječanj"}]
[null,{"$f":"Godina","v":2017}]
[null,"Mjesečni troškovi","Procijenjeno","Stvarno","Odstupanje"]
[null,"Stanovanje",{"v":1500,"d":"1,500"},{"v":1500,"d":"1,500"},{"$f":"Troškovi[[#This Row],[Procijenjeno]]-Troškovi[[#This Row],[Stvarno]]","v":0}]
[null,"Namirnice",250,280,{"$f":"Troškovi[[#This Row],[Procijenjeno]]-Troškovi[[#This Row],[Stvarno]]","v":-30}]
[null,"Telefon",38,38,{"$f":"Troškovi[[#This Row],[Procijenjeno]]-Troškovi[[#This Row],[Stvarno]]","v":0}]
[null,"Struja / plin",65,78,{"$f":"Troškovi[[#This Row],[Procijenjeno]]-Troškovi[[#This Row],[Stvarno]]","v":-13}]
[null,"Voda / kanalizacija / smeće",25,21,{"$f":"Troškovi[[#This Row],[Procijenjeno]]-Troškovi[[#This Row],[Stvarno]]","v":4}]
[null,"Kabelska televizija",75,83,{"$f":"Troškovi[[#This Row],[Procijenjeno]]-Troškovi[[#This Row],[Stvarno]]","v":-8}]
[null,"Internet",60,60,{"$f":"Troškovi[[#This Row],[Procijenjeno]]-Troškovi[[#This Row],[Stvarno]]","v":0}]
[null,"Održavanje / popravci",0,60,{"$f":"Troškovi[[#This Row],[Procijenjeno]]-Troškovi[[#This Row],[Stvarno]]","v":-60}]
[null,"Djeca",180,150,{"$f":"Troškovi[[#This Row],[Procijenjeno]]-Troškovi[[#This Row],[Stvarno]]","v":30}]
[null,"Školarina",250,250,{"$f":"Troškovi[[#This Row],[Procijenjeno]]-Troškovi[[#This Row],[Stvarno]]","v":0}]
[null,"Kućni ljubimci",75,80,{"$f":"Troškovi[[#This Row],[Procijenjeno]]-Troškovi[[#This Row],[Stvarno]]","v":-5}]
[null,"Prijevoz",280,260,{"$f":"Troškovi[[#This Row],[Procijenjeno]]-Troškovi[[#This Row],[Stvarno]]","v":20}]
[null,"Osobna njega",75,65,{"$f":"Troškovi[[#This Row],[Procijenjeno]]-Troškovi[[#This Row],[Stvarno]]","v":10}]
[null,"Osiguranje",255,255,{"$f":"Troškovi[[#This Row],[Procijenjeno]]-Troškovi[[#This Row],[Stvarno]]","v":0}]
[null,"Kreditne kartice",100,100,{"$f":"Troškovi[[#This Row],[Procijenjeno]]-Troškovi[[#This Row],[Stvarno]]","v":0}]
[null,"Krediti",0,0,{"$f":"Troškovi[[#This Row],[Procijenjeno]]-Troškovi[[#This Row],[Stvarno]]","v":0}]
[null,"Porezi",0,0,{"$f":"Troškovi[[#This Row],[Procijenjeno]]-Troškovi[[#This Row],[Stvarno]]","v":0}]
[null,"Darovi / dobrotvorni prilozi",150,150,{"$f":"Troškovi[[#This Row],[Procijenjeno]]-Troškovi[[#This Row],[Stvarno]]","v":0}]
[null,"Štednja",225,225,{"$f":"Troškovi[[#This Row],[Procijenjeno]]-Troškovi[[#This Row],[Stvarno]]","v":0}]
[null,"Drugo",0,0,{"$f":"Troškovi[[#This Row],[Procijenjeno]]-Troškovi[[#This Row],[Stvarno]]","v":0}]
[null,"Ukupno",{"$f":"SUBTOTAL(109,Troškovi[Procijenjeno])","v":{"v":3603,"d":"3,603"}},{"$f":"SUBTOTAL(109,Troškovi[Stvarno])","v":{"v":3655,"d":"3,655"}},{"$f":"SUBTOTAL(109,Troškovi[Odstupanje])","v":-52}]

{"sheet":"PODACI NA GRAFIKONU","index":3,"n_rows":6,"n_cols":4,"rows_kept":6,"hidden":true}
[null,"PODACI NA GRAFIKONU"]
[]
[null,null,"Procijenjeno","Stvarno"]
[null,"Protok novca",{"$f":"ProtokNovca[[#Totals],[Procijenjeno]]","v":2097},{"$f":"ProtokNovca[[#Totals],[Stvarno]]","v":1845}]
[null,"Mjesečni prihod",{"$f":"Prihod[[#Totals],[Procijenjeno]]","v":5700},{"$f":"Prihod[[#Totals],[Stvarno]]","v":5500}]
[null,"Mjesečni troškovi",{"$f":"Troškovi[[#Totals],[Procijenjeno]]","v":3603},{"$f":"Troškovi[[#Totals],[Stvarno]]","v":3655}]